bitfinex/quotes_SOLUSD_20260306
["timestamp","ask_amount","ask_price","bid_price","bid_amount"]
[1772762404244,0.81332628,89.126,89.063,3.69383402]
[1772762405353,0.81332628,89.108,89.027,12.58745791]
[1772762405551,0.81332628,89.108,89.016,50.48]
[1772762405552,0.81332628,89.098,89.016,50.48]
[1772762405728,1.09764942,89.098,89.056,11.22888968]
[1772762405938,0.28432314,89.096,89.056,11.22888968]
[1772762406138,0.81332628,89.095,89.056,0.80820427]
[1772762406759,0.81332628,89.095,89.057,0.80820427]
[1772762406929,11.22158134,89.114,89.057,0.80820427]
[1772762407124,0.80964019,89.113,89.057,0.80820427]
[1772762407740,0.80557413,89.109,89.057,0.80820427]
[1772762407938,0.80557413,89.099,89.057,0.80820427]
[1772762408138,0.80557413,89.097,89.057,0.80820427]
[1772762408655,0.80155458,89.093,89.057,0.80820427]
[1772762409757,0.79757552,89.091,89.057,0.80820427]
[1772762409958,0.79757552,89.091,89.059,0.80820427]
[1772762412348,11.22460433,89.09,89.061,0.80820427]
[1772762413649,11.22397896,89.095,89.061,0.80820427]
[1772762415862,11.22158134,89.114,89.063,0.80820427]
[1772762416035,11.22158134,89.114,89.064,0.80820427]
[1772762416237,11.22158134,89.114,89.065,0.28432314]
[1772762416445,11.22158134,89.114,89.066,0.80820427]
[1772762417063,0.77095931,89.113,89.066,0.80820427]
[1772762417961,11.22183319,89.112,89.068,0.80820427]
[1772762418762,11.22180531,89.113,89.068,0.80820427]
[1772762418944,11.22032224,89.124,89.07,0.80820427]
[1772762419265,11.22032224,89.124,89.072,0.80820427]
[1772762419562,11.22032224,89.124,89.074,0.28432314]
[1772762419760,11.22032224,89.124,89.076,0.80820427]
[1772762420144,11.22032224,89.124,89.075,0.28432314]
[1772762420145,0.76019982,89.129,89.078,0.80820427]
[1772762421169,0.75669305,89.128,89.078,0.80820427]
[1772762421575,3.43714437,89.11,89.061,0.80820427]
[1772762421746,0.75322965,89.108,89.061,0.80820427]
[1772762422542,0.74980975,89.105,89.061,0.80820427]
[1772762422944,0.28432314,89.106,89.05,0.2]
[1772762422945,1.09764942,89.099,89.05,0.2]
[1772762423151,0.81332628,89.098,89.05,0.2]
[1772762424372,0.81332628,89.098,89.056,11.22888968]
[1772762424570,0.81332628,89.096,89.052,11.2293754]
[1772762424777,0.81332628,89.088,89.052,11.2293754]
[1772762425063,0.81332628,89.088,89.057,0.80820427]
[1772762426745,0.81332628,89.086,89.057,0.80820427]
[1772762426947,0.81332628,89.085,89.04,0.2]
[1772762427144,0.28432314,89.085,89.04,0.2]
[1772762427372,0.81332628,89.083,89.04,0.2]
[1772762427574,0.81332628,89.081,89.04,0.2]
[1772762427772,0.81332628,89.079,89.04,0.2]
[1772762427974,0.81332628,89.078,89.04,0.2]
[1772762428475,0.81332628,89.078,89.041,11.23078132]
[1772762428781,0.73684175,89.076,89.04,0.2]
[1772762428947,0.73684175,89.076,89.041,0.71790857]
[1772762430752,0.77655324,89.074,89.035,0.74579355]
[1772762432968,39.2936131,89.073,89.035,0.74579355]
[1772762433161,0.77655324,89.072,89.035,0.74579355]
[1772762434371,0.77655324,89.072,89.021,0.6742052]
[1772762434372,30.0,89.071,89.022,0.74579355]
[1772762434573,0.77655324,89.069,89.022,0.74579355]
[1772762434951,0.77655324,89.069,89.021,0.6742052]
[1772762435157,1.06087638,89.059,89.021,1e-08]
[1772762435456,0.77655324,89.058,89.021,1e-08]
[1772762436356,0.77655324,89.049,89.01,0.2]
[1772762436570,0.77655324,89.055,89.01,0.74579356]
[1772762436874,0.77655324,89.055,89.012,0.74579355]
[1772762437276,11.22914186,89.054,89.014,0.74579355]
[1772762437577,11.22757944,89.067,89.015,0.74579355]
[1772762437766,0.77655324,89.066,89.015,0.74579355]
[1772762439476,0.77655324,89.064,89.017,0.74579355]
[1772762440653,0.77655324,89.062,89.019,0.74579355]
[1772762442982,0.28432314,89.078,89.021,0.74579355]
[1772762442983,0.77655324,89.06,89.021,0.74579355]
[1772762445895,11.22774524,89.066,89.023,0.74579355]
[1772762446474,12.00429848,89.066,89.023,0.74579355]
[1772762446882,0.77655324,89.065,89.023,0.74579355]
[1772762447795,0.77655324,89.063,89.023,0.74579355]
[1772762448102,0.77655324,89.063,89.016,0.74579355]
[1772762449896,0.77655324,89.061,89.018,0.74579355]
[1772762454599,0.77655324,89.059,89.02,0.74579355]
[1772762456601,0.77655324,89.057,89.014,0.74505982]
[1772762459082,0.77655324,89.055,89.016,0.74229523]
[1772762462004,39.30199653,89.054,89.016,0.74229523]
[1772762462208,0.69293172,89.053,89.016,0.74229523]
[1772762464985,39.30287921,89.052,89.016,0.74229523]
[1772762465184,0.69293172,89.051,89.016,0.74229523]
[1772762466015,0.69293172,89.063,89.018,0.68281144]
[1772762466211,11.22813321,89.062,89.018,0.68281144]
[1772762467096,11.22762894,89.066,89.02,0.68281144]
[1772762467285,0.69293172,89.065,89.02,0.68281144]
[1772762469208,0.69293172,89.063,89.022,0.68281144]
[1772762471198,0.69293172,89.061,89.024,0.68281144]
[1772762471615,0.69293172,89.066,89.024,0.68281144]
[1772762471787,11.22759292,89.067,89.024,0.68281144]
[1772762473618,0.28432314,89.104,89.027,0.68281144]
[1772762473911,0.28432314,89.104,89.032,0.28432314]
[1772762473912,0.69293172,89.103,89.032,0.28432314]
[1772762474109,0.69293172,89.103,89.033,0.68281144]
[1772762474719,0.69293172,89.103,89.036,0.68281144]
[1772762474911,0.69293172,89.129,89.042,0.68281144]
[1772762475210,0.69293172,89.129,89.059,0.68281144]
[1772762475412,0.69293172,89.129,89.063,0.68281144]
[1772762475616,39.26848423,89.13,89.056,3.69383402]
[1772762475617,0.69293172,89.127,89.066,0.68281144]
[1772762475912,0.69293172,89.127,89.067,0.68281144]
[1772762476420,11.2189479,89.135,89.076,0.68281144]
[1772762476596,11.2189479,89.135,89.079,4.82477569]
[1772762476919,11.2189479,89.135,89.083,0.68281144]
[1772762477413,11.21839443,89.14,89.083,0.68281144]
[1772762477607,0.69293172,89.146,89.086,0.68281144]
[1772762477801,0.69293172,89.146,89.087,0.68281144]
[1772762477985,0.69293172,89.145,89.087,0.68281144]
[1772762478188,0.69293172,89.139,89.087,0.68281144]
[1772762479911,0.69293172,89.137,89.087,0.68281144]
[1772762480109,3.44337354,89.13,89.086,4.1454038]
[1772762480312,3.44337354,89.13,89.082,0.68281144]
[1772762480313,0.69293172,89.129,89.082,0.68281144]
[1772762480510,0.69293172,89.129,89.083,11.22548634]
[1772762480716,0.69293172,89.129,89.084,0.68281144]
[1772762482510,0.69293172,89.127,89.084,0.68281144]
[1772762483402,0.69293172,89.127,89.075,0.68281144]
[1772762483922,0.69293172,89.119,89.075,0.68281144]
[1772762484402,39.27377185,89.118,89.075,0.68281144]
[1772762484606,0.69293172,89.117,89.075,0.68281144]
[1772762486830,0.69293172,89.115,89.075,0.68281144]
[1772762487031,0.69293172,89.114,89.053,11.22916241]
[1772762487220,0.69293172,89.109,89.039,11.23103359]
[1772762487525,0.69293172,89.089,89.036,4.00101127]
[1772762487912,0.69293172,89.089,89.036,15.2323024]
[1772762488229,0.69293172,89.089,89.01,1e-08]
[1772762488230,3.44337354,89.06,89.01,1e-08]
[1772762488416,3.69383402,89.113,89.01,1e-08]
[1772762488417,0.69293172,89.059,89.01,1e-08]
[1772762489032,3.44337354,89.07,89.01,1e-08]
[1772762489033,0.68952654,89.057,89.01,1e-08]
[1772762490905,11.22888968,89.056,89.01,1e-08]
[1772762491126,0.7317287,89.065,89.01,1e-08]
[1772762491333,0.7317287,89.065,89.014,0.71304624]
[1772762492219,0.7317287,89.071,89.014,0.71304624]
[1772762493216,0.7317287,89.069,89.016,0.99736938]
[1772762493418,0.7317287,89.069,89.017,0.71304624]
[1772762495939,0.7317287,89.067,89.019,0.71304624]
[1772762498342,0.7317287,89.065,89.01,1e-08]
[1772762498640,0.7317287,89.059,89.01,1e-08]
[1772762498823,0.7317287,89.059,89.011,0.71304624]
[1772762499835,0.50711812,89.059,89.011,0.71304624]
[1772762500850,39.3002313,89.058,89.011,0.71304624]
[1772762502044,0.7317287,89.057,89.01,1e-08]
[1772762502541,0.7317287,89.054,89.01,1e-08]
[1772762504043,0.7317287,89.049,89.01,1e-08]
[1772762504942,30.0,89.047,89.01,1e-08]
[1772762505149,0.7317287,89.046,89.01,1e-08]
[1772762506050,0.7317287,89.043,89.01,1e-08]
[1772762508046,0.7317287,89.041,89.01,1e-08]
[1772762508359,0.7317287,89.029,88.98,0.71304624]
[1772762509643,0.7317287,89.027,88.98,0.71304624]
[1772762510651,0.7317287,89.023,88.98,0.71304624]
[1772762511128,0.7317287,89.023,88.981,0.71304624]
[1772762511532,30.0,89.022,88.981,0.71304624]
[1772762511724,0.7317287,89.021,88.981,0.71304624]
[1772762512733,0.7317287,89.019,88.981,0.71304624]
[1772762514953,0.7317287,89.017,88.981,11.23831324]
[1772762515146,0.7317287,89.017,88.982,0.71304624]
[1772762517151,56.16069847,89.031,88.971,11.2396174]
[1772762517152,0.7317287,89.015,88.971,11.2396174]
[1772762517336,11.23393547,89.016,88.972,0.71304624]
[1772762517549,0.7317287,89.015,88.972,0.71304624]
[1772762519451,11.23418788,89.014,88.974,0.71304624]
[1772762520048,0.70157312,89.013,88.974,0.71304624]
[1772762520764,0.70157312,89.013,88.97,0.2]
[1772762520765,0.70157312,89.011,88.976,0.68371145]
[1772762521056,0.70157312,89.011,88.97,0.88371145]
[1772762521437,0.70157312,89.011,88.951,28.10517865]
[1772762521438,0.70157312,88.999,88.941,0.68371145]
[1772762522763,0.70157312,88.995,88.943,0.68371145]
[1772762523558,30.0,88.993,88.943,0.68371145]
[1772762523866,0.70157312,88.992,88.943,0.68371145]
[1772762525157,0.70157312,88.99,88.945,0.68371145]
[1772762525959,0.70157312,88.989,88.939,2.77834336]
[1772762526157,0.70157312,88.989,88.939,3.46205481]
[1772762526358,0.70157312,88.979,88.939,2.77834336]
[1772762526557,0.28432314,88.99,88.941,0.68371145]
[1772762526558,0.70157312,88.989,88.941,0.68371145]
[1772762527246,0.70157312,88.987,88.943,0.68371145]
[1772762528642,39.33114577,88.988,88.944,0.68371145]
[1772762528842,11.23747022,88.988,88.944,0.68371145]
[1772762529159,3.44597917,88.98,88.94,61.9]
[1772762529334,0.70157312,88.979,88.94,61.9]
[1772762529944,0.70157312,88.979,88.942,0.68371145]
[1772762530142,0.70157312,88.985,88.942,0.68371145]
[1772762531562,3.44597917,89.0,88.942,0.68371145]
[1772762531563,0.70157312,88.983,88.942,0.68371145]
[1772762533272,0.70157312,88.983,88.94,61.9]
[1772762533654,0.70157312,88.981,88.941,0.68371145]
[1772762533850,0.70157312,88.981,88.941,11.92712]
[1772762534055,0.70157312,88.981,88.942,0.68371145]
[1772762534363,0.70157312,88.979,88.939,2.77834336]
[1772762535048,0.70157312,88.977,88.939,2.77834336]
[1772762535942,30.0,88.976,88.939,2.77834336]
[1772762536146,0.70157312,88.974,88.94,0.68371145]
[1772762537045,0.70157312,88.972,88.94,0.68371145]
[1772762538060,0.70157312,88.97,88.939,2.77834336]
[1772762538266,0.70157312,88.97,88.927,0.68371145]
[1772762538444,0.70157312,88.97,88.93,0.88371145]
[1772762538648,0.70157312,88.969,88.93,0.88371145]
[1772762539550,0.70157312,88.969,88.931,11.24467283]
[1772762539756,0.70157312,88.969,88.932,0.68371145]
[1772762540161,0.70157312,88.967,88.933,11.24441995]
[1772762540845,0.70157312,88.967,88.934,0.68371145]
[1772762542667,0.70157312,88.965,88.93,0.2]
[1772762543044,0.70157312,88.965,88.931,0.68371145]
[1772762543668,0.70157312,88.965,88.932,0.68371145]
[1772762543871,11.9418222,88.966,88.932,0.68371145]
[1772762544167,0.70157312,88.965,88.932,0.68371145]
[1772762546154,0.70157312,88.963,88.934,0.68371145]
[1772762547659,11.24050177,88.964,88.934,0.68371145]
[1772762548168,0.70157312,88.98,88.936,0.68371145]
[1772762550288,0.70108497,88.978,88.938,0.67423501]
[1772762553089,11.93842891,88.989,88.94,0.67423501]
[1772762553271,11.23681817,88.994,88.941,0.67423501]
[1772762553580,11.23681817,88.994,88.943,0.67423501]
[1772762554381,28.08662987,89.011,88.951,0.67423501]
[1772762554382,11.23545009,89.004,88.951,0.67423501]
[1772762554956,11.23545009,89.004,88.954,0.67423501]
[1772762555258,0.70108497,89.017,88.961,0.67423501]
[1772762555454,6.3554269,89.005,88.961,0.28432314]
[1772762555656,6.3554269,89.005,88.965,0.32238268]
[1772762556086,6.06637264,89.005,88.969,0.03332842]
[1772762557788,0.70108497,89.017,88.971,0.03315073]
[1772762559881,0.70108497,89.017,88.973,0.03297316]
[1772762562471,0.70520941,89.024,88.977,0.03271286]
[1772762562665,0.70520941,89.024,88.979,0.03271286]
[1772762563075,0.1,89.06,88.985,0.03271286]
[1772762563076,0.70520941,89.058,88.985,0.03271286]
[1772762563363,0.70520941,89.058,88.996,0.03262942]
[1772762563563,0.1,89.06,89.004,4.82477569]
[1772762563778,0.80520941,89.06,89.009,0.03262942]
[1772762563983,0.80520941,89.06,89.017,0.03262942]
[1772762564687,0.80520941,89.06,89.019,0.03254669]
[1772762564893,0.70520941,89.058,89.019,0.03254669]
[1772762570879,0.70520941,89.057,89.017,11.23380927]
[1772762571277,0.70520941,89.057,89.012,11.23437071]
[1772762572799,0.70520941,89.055,89.011,0.03208]
[1772762574994,0.70520941,89.054,89.011,0.03208]
[1772762576299,0.70520941,89.052,89.011,0.03208]
[1772762576484,0.70520941,89.052,89.007,101.22274988]
[1772762576877,0.70520941,89.052,89.007,39.32274988]
[1772762577700,0.70520941,89.05,89.007,28.08767849]
[1772762578096,0.70520941,89.05,89.008,0.03157556]
[1772762581404,11.22977237,89.049,89.008,0.03157556]
[1772762581594,0.70520941,89.048,89.008,0.03157556]
[1772762581915,0.70520941,89.048,88.998,3.99380827]
[1772762582400,0.70520941,89.048,88.998,15.22989882]
[1772762583584,0.70520941,89.046,88.998,15.22989882]
[1772762584403,0.70520941,89.046,88.999,0.03090685]
[1772762586203,0.70520941,89.046,89.0,0.03074762]
[1772762586402,0.70520941,89.059,89.003,0.03074762]
[1772762586587,0.70520941,89.059,89.008,0.28432314]
[1772762586785,0.70520941,89.059,89.009,0.03074762]
[1772762587301,0.1,89.06,89.02,0.0306618]
[1772762587682,0.1,89.06,89.022,0.0306618]
[1772762587881,0.70520941,89.073,89.028,4.82477569]
[1772762588188,0.70520941,89.073,89.029,0.28432314]
[1772762589709,0.70520941,89.073,89.031,0.28432314]
[1772762590592,0.72054194,89.081,89.033,3.69383402]
[1772762590792,0.72054194,89.106,89.039,0.28432314]
[1772762591304,11.22258882,89.106,89.042,0.28432314]
[1772762591498,28.05276958,89.118,89.042,0.28432314]
[1772762591499,0.72054194,89.118,89.047,0.28432314]
[1772762591694,0.72054194,89.116,89.058,4.82477569]
[1772762591898,0.72054194,89.116,89.06,5.10909883]
[1772762592097,0.72054194,89.116,89.06,8.90381604]
[1772762594309,0.72054194,89.114,89.062,0.28432314]
[1772762595412,0.72054194,89.112,89.064,0.28432314]
[1772762596910,0.72054194,89.112,89.069,4.82477569]
[1772762597109,0.72054194,89.119,89.077,4.82477569]
[1772762597292,0.72054194,89.126,89.081,0.28432314]
[1772762598507,0.72054194,89.126,89.097,0.15846538]
[1772762598508,0.56144311,89.126,89.097,0.15846538]
[1772762598710,0.1,89.15,89.097,0.15846538]
[1772762598711,11.21738035,89.148,89.097,0.15846538]
[1772762599418,0.1,89.15,89.099,0.15853077]
[1772762600125,0.1,89.15,89.098,39.2825877]
[1772762600616,0.67224725,89.149,89.098,39.2825877]
[1772762600808,0.67224725,89.149,89.098,39.44119296]
[1772762601188,0.67224725,89.149,89.099,0.15860526]
[1772762601393,0.67224725,89.147,89.101,0.15867032]
[1772762602094,0.67224725,89.147,89.102,0.15867032]
[1772762602510,0.67224725,89.147,89.1,39.28170594]
[1772762603706,0.67224725,89.145,89.1,28.05836139]
[1772762605608,0.67224725,89.143,89.1,28.05836139]
[1772762606016,0.67224725,89.143,89.101,0.1589443]
[1772762606194,0.67224725,89.143,89.103,3.69383402]
[1772762606397,0.77224725,89.15,89.105,0.15901163]
[1772762607300,0.77224725,89.15,89.109,0.15908115]
[1772762607501,0.77224725,89.15,89.113,0.15908115]
[1772762607698,38.6258622,89.164,89.114,0.68142608]
[1772762609103,38.6258622,89.164,89.113,0.6771248]
[1772762609419,37.1258622,89.164,89.113,0.6771248]
[1772762609600,0.65525984,89.176,89.115,0.6771248]
[1772762610399,0.65525984,89.176,89.113,11.22162118]
[1772762611014,0.65525984,89.176,89.108,0.7080899]
[1772762611224,0.67693295,89.169,89.1,0.7080899]
[1772762611423,0.67693295,89.169,89.106,0.7080899]
[1772762611625,0.28432314,89.175,89.108,0.7080899]
[1772762611921,3.44127118,89.17,89.108,0.7080899]
[1772762612620,0.28432314,89.175,89.108,0.7080899]
[1772762613310,38.03255136,89.176,89.109,0.7080899]
[1772762613504,0.67693295,89.175,89.109,0.7080899]
[1772762613704,0.67693295,89.173,89.111,0.7080899]
[1772762614632,0.67693295,89.169,89.103,0.7080899]
[1772762614926,0.67693295,89.149,89.098,1.97092154]
[1772762615823,0.67693295,89.147,89.098,1.97092154]
[1772762616623,0.67693295,89.147,89.098,13.19450644]
[1772762617432,0.67693295,89.147,89.099,0.7080899]
[1772762618006,0.67693295,89.145,89.1,11.93143445]
[1772762619637,0.67693295,89.145,89.101,0.7080899]
[1772762619927,0.67693295,89.143,89.101,0.7080899]
[1772762620232,0.67693295,89.143,89.101,11.93119376]
[1772762620817,0.67693295,89.143,89.102,0.7080899]
[1772762621625,0.67693295,89.143,89.083,11.22548634]
[1772762621824,0.28432314,89.139,89.084,0.7080899]
[1772762622036,0.28432314,89.139,89.078,11.22600319]
[1772762622037,0.67693295,89.129,89.078,11.22600319]
[1772762622335,0.81909452,89.109,89.061,0.7080899]
[1772762622536,0.81909452,89.109,89.054,0.7080899]
[1772762622537,0.67693295,89.108,89.054,0.7080899]
[1772762622709,0.67693295,89.108,89.053,11.22926796]
[1772762622710,0.67693295,89.099,89.053,11.22926796]
[1772762623030,0.67693295,89.099,89.054,0.7080899]
[1772762624020,0.28432314,89.109,89.054,0.7080899]
[1772762624021,0.67693295,89.097,89.054,0.7080899]
[1772762624210,0.67693295,89.097,89.053,11.22926796]
[1772762624612,0.67693295,89.097,89.053,11.93735786]
[1772762625318,0.67693295,89.097,89.054,0.7080899]
[1772762626924,39.2825877,89.098,89.054,0.7080899]
[1772762626925,0.67693295,89.095,89.054,0.7080899]
[1772762627549,0.67693295,89.089,89.032,11.23187001]
[1772762627715,0.67693295,89.079,89.033,0.7080899]
[1772762628733,0.67693295,89.095,89.034,0.7080899]
[1772762629817,0.67693295,89.093,89.037,0.7080899]
[1772762632627,0.67693295,89.091,89.04,0.7080899]
[1772762634535,0.67693295,89.114,89.049,4.40192392]
[1772762634726,11.89851429,89.114,89.051,0.7080899]
[1772762635039,0.67693295,89.113,89.058,3.69383402]
[1772762635336,11.22158134,89.114,89.06,0.7080899]
[1772762635511,11.21893756,89.135,89.07,0.7080899]
[1772762635718,0.67693295,89.134,89.07,0.7080899]
[1772762635917,0.67693295,89.129,89.07,0.7080899]
[1772762636734,0.67693295,89.127,89.072,0.7080899]
[1772762638731,96.04753187,89.126,89.072,0.7080899]
[1772762638924,0.67693295,89.119,89.066,11.22752583]
[1772762639124,0.67693295,89.119,89.067,0.7080899]
[1772762640542,0.67693295,89.119,89.06,0.70512187]
[1772762640845,0.73080675,89.117,89.063,0.70512187]
[1772762641345,0.73080675,89.109,89.063,0.70512187]
[1772762642734,0.73080675,89.117,89.064,0.70512187]
[1772762642939,0.73080675,89.115,89.066,0.70512187]
[1772762643132,0.73080675,89.115,89.066,0.28432314]
[1772762643332,0.73080675,89.115,89.067,0.70512187]
[1772762644142,11.22158134,89.114,89.067,0.70512187]
[1772762644346,0.73080675,89.113,89.07,0.70512187]
[1772762646034,3.4407061,89.11,89.061,11.22819638]
[1772762646340,0.73080675,89.107,89.062,0.70512187]
[1772762647122,0.73080675,89.106,89.038,0.70512187]
[1772762647350,0.73080675,89.099,89.038,28.07789932]
[1772762647526,0.73080675,89.099,89.039,0.70512187]
[1772762647727,0.73080675,89.089,89.039,0.70512187]
[1772762647944,0.73080675,89.079,89.032,11.23182193]
[1772762648156,0.73080675,89.079,89.032,11.9369438]
[1772762648445,3.4407061,89.08,89.033,0.70512187]
[1772762648446,0.73080675,89.077,89.033,0.70512187]
[1772762650030,0.73080675,89.077,89.025,0.70512187]
[1772762650437,0.73080675,89.074,89.026,11.2326736]
[1772762651254,0.73080675,89.059,89.008,0.70512187]
[1772762652753,0.73080675,89.057,89.009,11.93994082]
[1772762653353,0.73080675,89.056,89.009,0.70512187]
[1772762653732,0.73080675,89.054,89.009,0.70512187]
[1772762654046,0.73080675,89.054,89.01,0.70512187]
[1772762656454,0.73080675,89.048,88.995,0.70512187]
[1772762656836,0.73080675,89.047,88.995,0.70512187]
[1772762657558,0.73080675,89.044,88.995,0.70512187]
[1772762658559,0.73080675,89.039,88.995,0.70512187]
[1772762658758,0.73080675,89.039,88.996,0.70512187]
[1772762659668,0.73080675,89.039,88.99,0.2]
[1772762660047,0.73080675,89.037,88.99,0.2]
[1772762660748,0.73080675,89.035,88.993,11.23683885]
[1772762660962,0.73080675,89.035,88.994,0.70512187]
[1772762661449,0.73080675,89.033,88.994,0.70512187]
[1772762662858,0.73080675,89.031,88.996,0.70512187]
[1772762663963,0.73080675,89.031,88.992,1.26974299]
[1772762664141,0.73080675,89.029,88.992,1.26974299]
[1772762665051,0.73080675,89.027,88.992,1.26974299]
[1772762667262,39.31347441,89.028,88.992,1.26974299]
[1772762667263,0.73080675,89.025,88.992,1.26974299]
[1772762667762,0.73080675,89.025,88.991,0.70512187]
[1772762668543,0.73080675,89.025,88.991,11.94221326]
[1772762668749,0.73080675,89.025,88.992,0.67624888]
[1772762669253,0.71597008,89.023,88.992,0.67624888]
[1772762670462,0.74216129,89.021,88.99,0.2]
[1772762671062,0.74216129,89.021,88.991,0.73873753]
[1772762672455,3.44601236,89.03,88.991,0.73873753]
[1772762672456,0.74216129,89.019,88.991,0.73873753]
[1772762674454,0.74216129,89.017,88.992,11.97570265]
[1772762674659,0.74216129,89.017,88.993,0.73873753]
[1772762677885,11.23393547,89.016,88.993,0.73873753]
[1772762679556,11.23337612,89.021,88.995,0.73873753]
[1772762679959,11.23337612,89.021,88.996,11.23646006]
[1772762680154,0.74216129,89.02,88.997,0.73873753]
[1772762681258,11.23355688,89.019,88.997,0.73873753]
[1772762682063,0.74216129,89.018,88.997,0.73873753]
[1772762683886,11.97597056,89.017,88.997,0.73873753]
[1772762684096,0.74216129,89.016,88.997,0.73873753]
[1772762684763,0.74216129,89.016,88.978,0.73873753]
[1772762685087,0.74216129,89.009,88.971,0.73873753]
[1772762685261,0.74216129,89.007,88.971,0.73873753]
[1772762686069,39.32319168,89.006,88.971,0.73873753]
[1772762686272,0.74216129,89.005,88.971,0.73873753]
[1772762688477,11.23545009,89.004,88.971,0.73873753]
[1772762688667,0.74216129,89.003,88.971,0.73873753]
[1772762688872,0.74216129,88.999,88.949,0.73873753]
[1772762691502,0.74216129,88.999,88.948,11.24252372]
[1772762691503,0.74216129,88.997,88.951,0.73873753]
[1772762695298,0.74216129,88.995,88.953,0.73873753]
[1772762696392,0.74216129,88.995,88.95,28.10567734]
[1772762696393,11.23671258,88.994,88.955,0.73873753]
[1772762696678,0.74216129,88.993,88.955,0.73873753]
[1772762698399,0.74216129,88.991,88.957,0.73873753]
[1772762700802,0.74305375,88.989,88.959,0.70860648]
[1772762702196,0.74305375,88.994,88.959,0.70860648]
[1772762702501,30.0,89.008,88.959,0.70860648]
[1772762702502,30.0,89.008,88.96,0.70860648]
[1772762702681,30.0,89.008,88.962,0.70860648]
[1772762702877,0.74305375,89.022,88.971,0.70860648]
[1772762703092,11.23262355,89.027,88.971,0.70860648]
[1772762703600,11.23262355,89.027,88.973,0.70860648]
[1772762703781,11.97475426,89.034,88.978,4.4024405]
[1772762704100,11.97475426,89.034,88.98,0.70860648]
[1772762705195,0.74305375,89.033,88.982,0.28432314]
[1772762705398,0.74305375,89.033,88.983,0.70860648]
[1772762705981,0.74305375,89.029,88.977,0.70860648]
[1772762707004,0.74305375,89.028,88.977,0.70860648]
[1772762707228,0.74305375,89.017,88.978,0.70860648]
[1772762710004,0.74305375,89.015,88.98,0.70860648]
[1772762713397,0.74305375,89.013,88.971,0.70860648]
[1772762715301,0.74305375,89.009,88.961,0.70860648]
[1772762715606,0.74305375,89.007,88.963,0.70860648]
[1772762717110,0.74305375,89.007,88.959,0.70860648]
[1772762717298,0.74305375,89.006,88.959,0.70860648]
[1772762717501,0.28432314,89.004,88.96,0.70860648]
[1772762717701,0.74305375,89.003,88.96,0.70860648]
[1772762720512,0.74305375,89.001,88.962,0.70860648]
[1772762720710,0.28432314,89.023,88.962,0.70860648]
[1772762720711,11.23507139,89.007,88.962,0.70860648]
[1772762721217,0.74305375,89.006,88.962,0.70860648]
[1772762723319,0.74305375,89.004,88.964,0.70860648]
[1772762723797,11.23532385,89.005,88.964,0.70860648]
[1772762724101,0.74305375,89.004,88.964,0.70860648]
[1772762725896,0.74305375,89.002,88.966,0.70860648]
[1772762726300,0.74305375,89.002,88.96,11.24093806]
[1772762726822,0.74305375,89.002,88.961,0.70860648]
[1772762728199,0.74305375,89.0,88.962,11.24075447]
[1772762728417,0.74305375,89.0,88.963,0.70860648]
[1772762730418,0.70837495,89.005,88.965,0.68428811]
[1772762730621,0.70837495,89.003,88.965,0.68428811]
[1772762730819,11.23494234,89.009,88.965,0.68428811]
[1772762731825,0.70837495,89.016,88.965,0.96861125]
[1772762732028,0.70837495,89.014,88.968,0.68428811]
[1772762734915,0.70837495,89.012,88.971,0.68428811]
[1772762735128,0.70837495,89.055,88.978,5.10909883]
[1772762735309,0.70837495,89.055,88.984,0.68428811]
[1772762735520,0.70837495,89.055,88.985,0.68428811]
[1772762735710,0.70837495,89.049,88.987,0.68428811]
[1772762735907,0.70837495,89.049,88.988,0.68428811]
[1772762736113,0.70837495,89.049,88.99,0.68428811]
[1772762736424,0.70837495,89.048,88.991,0.68428811]
[1772762737208,3.44770544,89.05,88.993,0.68428811]
[1772762737209,0.70837495,89.045,88.993,0.68428811]
[1772762739127,0.70837495,89.039,88.993,0.68428811]
[1772762740011,0.70837495,89.039,88.97,61.9]
[1772762740012,0.70837495,89.029,88.971,0.68428811]
[1772762740414,0.70837495,89.029,88.972,0.68428811]
[1772762740613,0.70837495,89.028,88.972,0.68428811]
[1772762741215,3.44770544,89.03,88.974,0.68428811]
[1772762741216,0.70837495,89.025,88.974,0.68428811]
[1772762744343,0.70837495,89.023,88.976,0.68428811]
[1772762746524,0.70837495,89.021,88.978,0.68428811]
[1772762748743,0.70837495,89.019,88.98,0.68428811]
[1772762751346,0.70837495,89.025,88.982,0.68428811]
[1772762754656,0.70837495,89.023,88.984,0.68428811]
[1772762756447,0.70837495,89.021,88.986,0.68428811]
[1772762756765,0.70837495,89.042,88.989,0.68428811]
[1772762757052,0.70837495,89.042,88.991,0.68428811]
[1772762758541,0.70837495,89.04,88.993,0.68428811]
[1772762759556,0.70837495,89.039,88.992,11.23696512]
[1772762759946,39.30773463,89.041,88.993,0.70900586]
[1772762759947,0.6911441,89.038,88.993,0.70900586]
[1772762760739,0.6911441,89.036,88.995,0.70900586]
[1772762765466,0.6911441,89.034,88.997,0.70900586]
[1772762767964,0.6911441,89.047,88.999,0.70900586]
[1772762768967,0.6911441,89.046,88.999,0.70900586]
[1772762769967,0.6911441,89.044,89.001,0.70900586]